fUSD/lending_fUSD_20250405
["ID","MTS","AMOUNT","RATE_DAILY","PERIOD"]
[357211607,1743897040093,-563.87776121,0.0003123,2]
[357211608,1743897040103,-253.62339363,0.0003123,2]
[357211609,1743897040112,-500.0,0.0003123,2]
[357211610,1743897040122,-500.0,0.0003123,2]
[357211611,1743897040131,-500.0,0.0003123,2]
[357211612,1743897040141,-500.0,0.0003123,2]
[357211613,1743897040151,-298.78042356,0.0003123,2]
[357211614,1743897040161,-488.83,0.00031231,2]
[357211615,1743897040170,-500.0,0.00031231,2]
[357211616,1743897040180,-353.5716189,0.00031231,2]
[357211617,1743897040190,-738.52,0.00031231,2]
[357211618,1743897040200,-500.0,0.00031232,2]
[357211619,1743897040210,-500.0,0.00031232,2]
[357211620,1743897040220,-500.0,0.00031232,2]
[357211621,1743897040230,-500.0,0.00031232,2]
[357211622,1743897040240,-2000.0,0.00031232,2]
[357211623,1743897040250,-500.0,0.00031232,2]
[357211624,1743897040260,-500.0,0.00031232,2]
[357211625,1743897040270,-631.52,0.00031232,2]
[357211626,1743897040279,-500.0,0.00031232,2]
[357211627,1743897040289,-500.0,0.00031232,2]
[357211628,1743897040300,-500.0,0.00031232,2]
[357211629,1743897040310,-1000.0,0.00031405,2]
[357211630,1743897040320,-156.16434652,0.00031405,2]
[357211631,1743897040330,-500.0,0.00031405,2]
[357211632,1743897040340,-500.0,0.00031405,2]
[357211633,1743897040351,-500.0,0.00031405,2]
[357211634,1743897040360,-500.0,0.00031405,2]
[357211635,1743897040370,-1091.63,0.00031405,2]
[357211636,1743897040379,-500.0,0.00031405,2]
[357211637,1743897040389,-500.0,0.00031405,2]
[357211638,1743897040399,-500.0,0.00031405,2]
[357211639,1743897040409,-500.0,0.00031405,2]
[357211640,1743897040419,-722.04,0.00031405,2]
[357211641,1743897040428,-500.0,0.00031405,2]
[357211642,1743897040439,-500.0,0.00031504,2]
[357211643,1743897040449,-500.0,0.00031504,2]
[357211644,1743897040459,-500.0,0.00031504,2]
[357211645,1743897040468,-500.0,0.00031504,2]
[357211646,1743897040478,-500.0,0.00031504,2]
[357211647,1743897040488,-500.0,0.00031504,2]
[357211648,1743897040497,-500.0,0.00031504,2]
[357211649,1743897040507,-500.0,0.00031504,2]
[357211650,1743897040516,-500.0,0.00031504,2]
[357211651,1743897040526,-443.86399886,0.00031504,2]
[357211652,1743897040535,-500.0,0.00031504,2]
[357211653,1743897040544,-500.0,0.00031504,2]
[357211654,1743897040554,-500.0,0.00031504,2]
[357211655,1743897040564,-500.0,0.00031504,2]
[357211656,1743897040574,-500.0,0.00031504,2]
[357211657,1743897040583,-500.0,0.00031504,2]
[357211658,1743897040593,-500.0,0.00031504,2]
[357211659,1743897040603,-165.93975288,0.00031504,2]
[357211660,1743897040612,-500.0,0.00031504,2]
[357211661,1743897040622,-500.0,0.00031504,2]
[357211662,1743897040632,-314.39,0.00031504,2]
[357211663,1743897040642,-205.96,0.00031504,2]
[357211664,1743897040651,-500.0,0.00031504,2]
[357211665,1743897040661,-500.0,0.00031505,2]
[357211666,1743897040671,-164.67,0.00031505,2]
[357211667,1743897040681,-738.52,0.00031505,2]
[357211668,1743897040691,-500.0,0.00031506,2]
[357211669,1743897040701,-500.0,0.00031506,2]
[357211670,1743897040711,-500.0,0.00031506,2]
[357211671,1743897040722,-641.93784742,0.00031506,2]
[357211672,1743897040732,-500.0,0.00031506,2]
[357211673,1743897040742,-500.0,0.00031506,2]
[357211674,1743897040752,-500.0,0.00031506,2]
[357211675,1743897040762,-500.0,0.00031679,2]
[357211676,1743897040772,-500.0,0.00031679,2]
[357211677,1743897040781,-500.0,0.00031679,2]
[357211678,1743897040790,-500.0,0.00031679,2]
[357211679,1743897040800,-1091.63,0.00031679,2]
[357211680,1743897040809,-500.0,0.00031679,2]
[357211681,1743897040819,-500.0,0.00031679,2]
[357211682,1743897040830,-607.8,0.00031679,2]
[357211683,1743897040839,-500.0,0.00031679,2]
[357211684,1743897040848,-722.04,0.00031679,2]
[357211685,1743897040858,-500.0,0.00031679,2]
[357211686,1743897040868,-500.0,0.00031778,2]
[357211687,1743897040878,-500.0,0.00031778,2]
[357211688,1743897040887,-500.0,0.00031778,2]
[357211689,1743897040897,-500.0,0.00031778,2]
[357211690,1743897040910,-500.0,0.00031778,2]
[357211691,1743897040919,-500.0,0.00031778,2]
[357211692,1743897040929,-500.0,0.00031778,2]
[357211693,1743897040938,-616.46925663,0.00031778,2]
[357211694,1743897040948,-500.0,0.00031778,2]
[357211695,1743897040960,-500.0,0.00031778,2]
[357211696,1743897040971,-500.0,0.00031778,2]
[357211697,1743897040982,-500.0,0.00031778,2]
[357211698,1743897040992,-500.0,0.00031778,2]
[357211699,1743897041002,-500.0,0.00031778,2]
[357211700,1743897041012,-500.0,0.00031778,2]
[357211701,1743897041022,-500.0,0.00031778,2]
[357211702,1743897041031,-500.0,0.00031778,2]
[357211703,1743897041041,-500.0,0.00031778,2]
[357211704,1743897041051,-609.50709333,0.00031778,2]
[357211705,1743897041060,-500.0,0.00031778,2]
[357211706,1743897041070,-500.0,0.00031778,2]
[357211707,1743897041080,-738.52,0.00031779,2]
[357211708,1743897041090,-500.0,0.0003178,2]
[357211709,1743897041099,-500.0,0.0003178,2]
[357211710,1743897041109,-500.0,0.0003178,2]
[357211711,1743897041119,-500.0,0.0003178,2]
[357211712,1743897041128,-500.0,0.00031953,2]
[357211713,1743897041138,-500.0,0.00031953,2]
[357211714,1743897041148,-500.0,0.00031953,2]
[357211715,1743897041158,-500.0,0.00031953,2]
[357211716,1743897041167,-1091.63,0.00031953,2]
[357211717,1743897041177,-500.0,0.00031953,2]
[357211718,1743897041186,-500.0,0.00031953,2]
[357211719,1743897041196,-500.0,0.00031953,2]
[357211720,1743897041206,-722.04,0.00031953,2]
[357211721,1743897041215,-500.0,0.00031953,2]
[357211722,1743897041225,-500.0,0.00032052,2]
[357211723,1743897041235,-500.0,0.00032052,2]
[357211724,1743897041245,-500.0,0.00032052,2]
[357211725,1743897041255,-500.0,0.00032052,2]
[357211726,1743897041264,-500.0,0.00032052,2]
[357211727,1743897041274,-500.0,0.00032052,2]
[357211728,1743897041284,-500.0,0.00032052,2]
[357211729,1743897041294,-500.0,0.00032052,2]
[357211730,1743897041304,-500.0,0.00032052,2]
[357211731,1743897041313,-500.0,0.00032052,2]
[357211732,1743897041323,-500.0,0.00032052,2]
[357211733,1743897041334,-500.0,0.00032052,2]
[357211734,1743897041343,-500.0,0.00032052,2]
[357211735,1743897041353,-500.0,0.00032052,2]
[357211736,1743897041363,-500.0,0.00032052,2]
[357211737,1743897041372,-500.0,0.00032052,2]
[357211738,1743897041383,-500.0,0.00032052,2]
[357211739,1743897041393,-738.52,0.00032053,2]
[357211740,1743897041406,-500.0,0.00032054,2]
[357211741,1743897041416,-500.0,0.00032054,2]
[357211742,1743897041426,-500.0,0.00032054,2]
[357211743,1743897041436,-500.0,0.00032054,2]
[357211744,1743897041446,-500.0,0.00032227,2]
[357211745,1743897041457,-500.0,0.00032227,2]
[357211746,1743897041467,-500.0,0.00032227,2]
[357211747,1743897041603,-500.0,0.00032227,2]
[357211748,1743897041612,-1091.63,0.00032227,2]
[357211749,1743897041622,-500.0,0.00032227,2]
[357211750,1743897041631,-500.0,0.00032227,2]
[357211751,1743897041640,-500.0,0.00032227,2]
[357211752,1743897041650,-722.04,0.00032227,2]
[357211753,1743897041659,-500.0,0.00032227,2]
[357211754,1743897041669,-166.66,0.00032246,2]
[357211755,1743897041678,-500.0,0.00032326,2]
[357211756,1743897041687,-500.0,0.00032326,2]
[357211757,1743897041697,-233.45861766,0.00032326,2]
[357211758,1743897041706,-500.0,0.00032326,2]
[357211759,1743897041715,-500.0,0.00032326,2]
[357211760,1743897041725,-500.0,0.00032326,2]
[357211761,1743897041734,-500.0,0.00032326,2]
[357211762,1743897041743,-500.0,0.00032326,2]
[357211763,1743897041752,-500.0,0.00032326,2]
[357211764,1743897041762,-500.0,0.00032326,2]
[357211765,1743897041771,-500.0,0.00032326,2]
[357211766,1743897041780,-500.0,0.00032326,2]
[357211767,1743897041790,-738.52,0.00032327,2]
[357211768,1743897041800,-150.0,0.00032328,2]
[357211769,1743897041809,-166.45,0.00032328,2]
[357211770,1743897041818,-500.0,0.00032328,2]
[357211771,1743897041828,-500.0,0.00032328,2]
[357211772,1743897041837,-500.0,0.00032328,2]
[357211773,1743897041846,-2933.98307835,0.00032465,2]
[357211774,1743897041856,-166.66,0.00032481,2]
[357211775,1743897041865,-500.0,0.00032501,2]
[357211776,1743897041874,-1091.63,0.00032501,2]
[357211777,1743897041884,-500.0,0.00032501,2]
[357211778,1743897041893,-500.0,0.00032501,2]
[357211779,1743897041902,-722.04,0.00032501,2]
[357211780,1743897041915,-541.56,0.00032537,2]
[357211781,1743897041924,-224.87450061,0.000326,2]
[357211782,1743897041933,-609.14,0.000326,2]
[357211783,1743897041942,-362.53,0.000326,2]
[357211784,1743897041953,-185.88,0.000326,2]
[357211785,1743897041962,-500.0,0.000326,2]
[357211786,1743897041971,-500.0,0.000326,2]
[357211787,1743897041981,-500.0,0.000326,2]
[357211788,1743897041992,-738.52,0.00032601,2]
[357211789,1743897042001,-500.0,0.00032602,2]
[357211790,1743897042010,-500.0,0.00032602,2]
[357211791,1743897042020,-446.38,0.00032602,2]
[357211792,1743897042029,-236.34,0.00032646,2]
[357211793,1743897042038,-171.36,0.00032646,2]
[357211794,1743897042047,-859.16,0.00032648,2]
[357211795,1743897042056,-1091.63,0.00032775,2]
[357211796,1743897042066,-500.0,0.00032775,2]
[357211797,1743897042075,-500.0,0.00032775,2]
[357211798,1743897042085,-722.04,0.00032775,2]
[357211799,1743897042094,-738.52,0.00032875,2]
[357211800,1743897042103,-500.0,0.00032876,2]
[357211801,1743897042112,-500.0,0.00032876,2]
[357211802,1743897042122,-500.0,0.00032877,7]
[357211803,1743897042131,-411.52929744,0.00032877,7]
[357211804,1743897042140,-500.0,0.00032877,7]
[357211805,1743897042149,-500.0,0.00032877,7]
[357211806,1743897042159,-500.0,0.00032877,7]
[357211807,1743897042168,-500.0,0.00032877,7]
[357211808,1743897042177,-500.0,0.00032877,7]
[357211809,1743897042186,-500.0,0.00032877,7]
[357211810,1743897042195,-500.0,0.00032877,7]
[357211811,1743897042206,-150.0,0.00032877,7]
[357211812,1743897042215,-1091.63,0.00033049,2]
[357211813,1743897042224,-500.0,0.00033049,2]
[357211814,1743897042235,-500.0,0.00033049,2]
[357211815,1743897042244,-722.04,0.00033049,2]
[357211816,1743897042254,-738.52,0.00033149,2]
[357211817,1743897042263,-500.0,0.0003315,2]
[357211818,1743897042272,-500.0,0.0003315,2]
[357211819,1743897042282,-1091.63,0.00033323,2]
[357211820,1743897042291,-500.0,0.00033323,2]
[357211821,1743897042300,-500.0,0.00033323,2]
[357211822,1743897042309,-722.04,0.00033323,2]
[357211823,1743897042319,-738.52,0.00033423,2]
[357211824,1743897042328,-500.0,0.00033424,2]
[357211825,1743897042337,-500.0,0.00033424,2]
[357211826,1743897042347,-166.66,0.00033475,2]
[357211827,1743897042356,-1091.63,0.00033597,2]
[357211828,1743897042366,-500.0,0.00033597,2]
[357211829,1743897042376,-500.0,0.00033597,2]
[357211830,1743897042385,-722.04,0.00033597,2]
[357211831,1743897042394,-548.82968716,0.00033697,2]
[357211832,1743897042446,-189.69031284,0.00033697,2]
[357211833,1743897042455,-150.0,0.00033698,2]
[357211834,1743897042465,-500.0,0.00033698,2]
[357211835,1743897042474,-171.3739592,0.00033698,2]
[357211836,1743897042486,-136.81112502,0.00033698,2]
[357211837,1743897042495,-117.93023759,0.00033871,2]
[357211838,1743897042506,-521.24861591,0.00033871,2]
[357211839,1743897042518,-403.70470002,0.00033871,2]
[357211840,1743897042528,-48.74644648,0.00033871,2]
[357211841,1743897042538,-500.0,0.00033871,2]
[357211842,1743897042548,-500.0,0.00033871,2]
[357211843,1743897042557,-722.04,0.00033871,2]
[357211844,1743897042566,-157.75,0.00033901,2]
[357211845,1743897042576,-738.52,0.00033971,2]
[357211846,1743897042585,-500.0,0.00033972,2]
[357211847,1743897042594,-1633.42262764,0.00034,6]
[357211848,1743897042609,-1407.24170441,0.00034,6]
[357211849,1743897042618,-541.56,0.00034016,2]
[357211850,1743897042627,-1000.0,0.00034094,2]
[357211851,1743897042636,-1091.63,0.00034145,2]
[357211852,1743897042646,-500.0,0.00034145,2]
[357211853,1743897042655,-500.0,0.00034145,2]
[357211854,1743897042664,-722.04,0.00034145,2]
[357211855,1743897042674,-738.52,0.00034245,2]
[357211856,1743897042683,-500.0,0.00034246,2]
[357211857,1743897042693,-1091.63,0.00034419,2]
[357211858,1743897042704,-309.35,0.00034419,2]
[357211859,1743897042714,-500.0,0.00034419,2]
[357211860,1743897042725,-722.04,0.00034419,2]
[357211861,1743897042735,-738.52,0.00034519,2]
[357211862,1743897042744,-500.0,0.0003452,2]
[357211863,1743897042754,-150.0,0.00034548,10]
[357211864,1743897042764,-151.39684911,0.00034656,120]
[357211865,1743897042773,-1091.63,0.00034693,2]
[357211866,1743897042783,-500.0,0.00034693,2]
[357211867,1743897042793,-722.04,0.00034693,2]
[357211868,1743897042802,-166.66,0.00034704,2]
[357211869,1743897042812,-738.52,0.00034793,2]
[357211870,1743897042823,-500.0,0.00034794,2]
[357211871,1743897042834,-2933.98307835,0.00034895,2]
[357211872,1743897042843,-859.16,0.00034912,2]
[357211873,1743897042852,-166.66,0.00034957,2]
[357211874,1743897042862,-1091.63,0.00034967,2]
[357211875,1743897042871,-500.0,0.00034967,2]
[357211876,1743897042881,-722.04,0.00034967,2]
[357211877,1743897042890,-151.12,0.00035,2]
[357211878,1743897042899,-738.52,0.00035067,2]
[357211880,1743897042913,-248.38,0.00035068,2]
[357211881,1743897042922,-1091.63,0.00035241,2]
[357211883,1743897042932,-265.96,0.00035241,2]
[357211885,1743897042943,-722.04,0.00035241,2]
[357211886,1743897042953,-738.52,0.00035341,2]
[357211887,1743897042962,-541.56,0.00035495,2]
[357211888,1743897042971,-362.82166464,0.00035507,7]
[357211889,1743897042981,-1091.63,0.00035515,2]
[357211890,1743897042993,-722.04,0.00035515,2]
[357211891,1743897043003,-500.0,0.00035533,2]
[357211892,1743897043012,-500.0,0.00035533,2]
[357211893,1743897043022,-500.0,0.00035533,2]
[357211894,1743897043031,-500.0,0.00035533,2]
[357211895,1743897043040,-738.52,0.00035615,2]
[357211896,1743897043050,-151.0,0.00035616,2]
[357211897,1743897043059,-151.65,0.00035616,2]
[357211898,1743897043069,-1091.63,0.00035789,2]
[357211899,1743897043079,-722.04,0.00035789,2]
[357211900,1743897043088,-738.52,0.00035889,2]
[357211901,1743897043098,-2500.0,0.0003593,7]
[357211902,1743897043107,-1091.63,0.00036063,2]
[357211903,1743897043117,-722.04,0.00036063,2]
[357211904,1743897043127,-150.0,0.000361,2]
[357211905,1743897043136,-738.52,0.00036163,2]
[357211906,1743897043146,-573.0,0.00036309,2]
[357211907,1743897043157,-2041.0,0.00036309,2]
[357211908,1743897043167,-1285.0,0.00036309,2]
[357211909,1743897043177,-1366.0,0.00036309,2]
[357211910,1743897043187,-246.582,0.00036309,2]
[357211911,1743897043197,-4083.0,0.00036309,2]
[357211912,1743897043206,-151.0,0.00036309,2]
[357211913,1743897043215,-3954.0,0.00036309,2]
[357211914,1743897043225,-851.0,0.00036309,2]
[357211915,1743897043235,-236.0,0.00036326,2]
[357211916,1743897043245,-1091.63,0.00036337,2]
[357211917,1743897043255,-722.04,0.00036337,2]
[357211918,1743897043264,-738.52,0.00036437,2]
[357211919,1743897043276,-150.0,0.00036507,2]
[357211920,1743897043285,-7861.58151969,0.00036507,7]
[357211921,1743897043294,-11680.72043515,0.00036507,7]
[357211922,1743897043305,-1000.0,0.00036586,5]
[357211923,1743897043316,-1131.48776162,0.00036586,2]
[357211924,1743897043325,-1091.63,0.00036611,2]
[357211925,1743897043334,-722.04,0.00036611,2]
[357211926,1743897043345,-738.56,0.00036711,2]
[357211927,1743897043354,-1091.84000696,0.00036885,2]
[357211928,1743897043363,-722.04,0.00036885,2]
[357211929,1743897043372,-989.75,0.00037067,2]
[357211930,1743897043382,-150.99,0.00037067,2]
[357211931,1743897043392,-757.57,0.00037067,10]
[357211932,1743897043402,-151.28,0.00037067,2]
[357211933,1743897043411,-859.16,0.00037176,2]
[357211934,1743897043420,-2933.98307835,0.00037324,2]
[357211935,1743897043430,-987.0,0.00037507,5]
[357211936,1743897043439,-1000.0,0.00037882,2]
[357211937,1743897043448,-236.34,0.00038443,2]
[357211938,1743897043457,-171.36,0.00038443,2]
[357211939,1743897043466,-157.75,0.00038744,2]
[357211940,1743897043476,-1012.0,0.000388,7]
[357211941,1743897043485,-1285.0,0.00039309,2]
[357211942,1743897043495,-1366.0,0.00039309,2]
[357211943,1743897043504,-151.0,0.00039309,2]
[357211944,1743897043513,-2907.25903618,0.00039309,2]
[357211945,1743897043526,-1046.74096382,0.00039309,2]
[357211947,1743897043536,-859.16,0.0003944,2]
[357211949,1743897043545,-2933.98307835,0.00039753,2]
[357211951,1743897043554,-195.56,0.000399,7]
[357211952,1743897043563,-150.0,0.0004,120]
[357211953,1743897043573,-500.0,0.00041096,2]
[357211954,1743897043582,-500.0,0.00041151,2]
[357211955,1743897043592,-500.0,0.00041206,2]
[357211956,1743897043601,-500.0,0.0004126,2]
[357211957,1743897043610,-995.497,0.00041315,2]
[357211958,1743897043619,-1000.0,0.0004167,2]
[357211959,1743897043629,-1394.11,0.0004168,2]
[357211960,1743897043638,-859.16,0.00041704,2]
[357211961,1743897043648,-2933.98307835,0.00042183,15]
[357211962,1743897043658,-1282.0,0.00042309,2]
[357211963,1743897043667,-165.0,0.00042309,2]
[357211964,1743897043676,-151.0,0.00042309,2]
[357211965,1743897043686,-3954.0,0.00042309,2]
[357211966,1743897043696,-500.0,0.00043012,2]
[357211967,1743897043706,-500.0,0.00043012,2]
[357211968,1743897043715,-5000.0,0.00043013,5]
[357211969,1743897043724,-614.51725799,0.00043013,5]
[357211970,1743897043734,-157.75,0.00043587,2]
[357211971,1743897043744,-212.99892041,0.00043681,20]
[357211972,1743897043753,-500.0,0.0004378,2]
[357211973,1743897043763,-500.0,0.0004378,2]
[357211974,1743897043772,-500.0,0.0004378,2]
[357211975,1743897043781,-71749.4226557,0.00043781,7]
[357211976,1743897043792,-151.0,0.00043781,14]
[357211977,1743897043801,-151.0,0.00043781,14]
[357211978,1743897043811,-151.0,0.00043781,14]
[357211979,1743897043820,-1257.195084,0.00043781,14]
[357211980,1743897043830,-1257.195084,0.00043781,14]
[357211981,1743897043840,-154.962858,0.00043781,14]
[357211982,1743897043850,-151.0,0.00043781,14]
[357211983,1743897043860,-151.0,0.00043781,14]
[357211984,1743897043870,-186.816434,0.00043781,14]
[357211985,1743897043880,-186.816434,0.00043781,14]
[357211986,1743897043889,-151.0,0.00043781,14]
[357211987,1743897043899,-151.0,0.00043781,14]
[357211988,1743897043911,-859.16,0.00043968,2]
[357211989,1743897043920,-236.34,0.00044239,2]
[357211990,1743897043930,-171.36,0.00044239,2]
[357211991,1743897043940,-151.0,0.00044612,14]
[357211992,1743897043950,-151.0,0.00044612,14]
[357211993,1743897043960,-151.0,0.00044612,14]
[357211994,1743897043969,-153.944819,0.00044612,14]
[357211995,1743897043980,-151.0,0.00044612,14]
[357211996,1743897043990,-236.632244,0.00044612,14]
[357211997,1743897044000,-150.0,0.00045,120]
[357211998,1743897044010,-3954.0,0.00045309,2]
[357211999,1743897044020,-151.0,0.00045309,14]
[357212000,1743897044029,-151.0,0.00045309,14]
[357212001,1743897044039,-151.0,0.00045309,14]
[357212002,1743897044048,-152.131515,0.00045309,14]
[357212003,1743897044058,-151.0,0.00045309,14]
[357212004,1743897044067,-152.539738,0.00045309,14]
[357212005,1743897044077,-151.0,0.00045309,14]
[357212006,1743897044086,-151.0,0.00045309,14]
[357212007,1743897044096,-1000.0,0.00045458,2]
[357212008,1743897044105,-150.0,0.00045589,10]
[357212009,1743897044114,-3393.18732577,0.00045679,120]
[357212010,1743897044127,-159.95730807,0.00045679,120]
[357212011,1743897044136,-803.24021193,0.00045999,2]
[357212012,1743897044148,-1375.4138,0.00045999,2]
[357212013,1743897044167,-312.93135816,0.00030409,2]
[357212014,1743897044177,-1630.32393842,0.00045999,2]
[357212015,1743897044188,-14241.67204965,0.00045999,2]
[357212016,1743897044199,-166.178883,0.00045999,14]
[357212017,1743897044208,-859.16,0.00046232,2]
[357212018,1743897044219,-1006.9919,0.00046499,2]
[357212019,1743897044229,-190.681685,0.00046534,2]
[357212020,1743897044239,-193.342,0.00046888,30]
[357212021,1743897044249,-300.0,0.00048,120]
[357212022,1743897044258,-3942.0,0.00048309,2]
[357212023,1743897044268,-859.16,0.00048495,2]
[357212024,1743897044277,-2000.0,0.000485,2]
[357212025,1743897044287,-300.0,0.00049315,120]
[357212026,1743897044296,-150.0,0.0005,120]
[357212027,1743897044305,-219.31175554,0.0005,120]
[357212028,1743897044315,-236.34,0.00050036,2]
[357212029,1743897044326,-171.36,0.00050036,2]
[357212030,1743897044335,-545.629,0.00050101,88]
[357212031,1743897044344,-5800.0,0.00050274,21]
[357212032,1743897044354,-1248.0609143,0.00050439,4]
[357212033,1743897044363,-151.0,0.00050667,120]
[357212034,1743897044372,-151.0,0.00050667,120]
[357212035,1743897044382,-151.0,0.00050667,120]
[357212036,1743897044392,-151.96532,0.00050667,120]
[357212037,1743897044403,-151.0,0.00050667,120]
[357212038,1743897044412,-500.0,0.00050667,60]
[357212039,1743897044422,-500.0,0.00050667,60]
[357212040,1743897044431,-500.0,0.00050667,60]
[357212041,1743897044440,-859.16,0.00050759,2]
[357212042,1743897044450,-500.0,0.00050941,60]
[357212043,1743897044459,-500.0,0.00050941,60]
[357212044,1743897044469,-500.0,0.00050989,2]
[357212045,1743897044479,-500.0,0.00050989,120]
[357212046,1743897044489,-21819.36948751,0.00051,120]
[357212047,1743897044499,-299.8899856,0.00051,120]
[357212048,1743897044510,-150.0,0.00051012,7]
[357212049,1743897044520,-150.0,0.00051014,7]
[357212050,1743897044530,-2914.80787817,0.0005109,110]
[357212051,1743897044541,-150.0,0.00051099,7]
[357212052,1743897044550,-150.0,0.00051117,7]
[357212053,1743897044559,-2000.0,0.000512,2]
[357212054,1743897044568,-500.0,0.00051215,60]
[357212055,1743897044578,-500.0,0.00051215,60]
[357212056,1743897044587,-150.0,0.00051226,7]
[357212057,1743897044598,-150.0,0.00051239,7]
[357212058,1743897044608,-150.0,0.00051255,7]
[357212059,1743897044617,-150.0,0.00051293,7]
[357212060,1743897044626,-150.0,0.00051312,7]
[357212061,1743897044635,-150.0,0.00051331,7]
[357212062,1743897044645,-150.0,0.00051336,7]
[357212063,1743897044654,-150.0,0.00051339,7]
[357212064,1743897044664,-150.0,0.00051341,7]
[357212065,1743897044674,-150.0,0.00051349,7]
[357212066,1743897044683,-150.0,0.00051364,7]
[357212067,1743897044692,-150.0,0.00051367,7]
[357212068,1743897044702,-150.0,0.00051372,7]
[357212069,1743897044711,-150.0,0.00051379,7]
[357212070,1743897044721,-150.0,0.00051386,7]
[357212071,1743897044730,-150.0,0.00051397,7]
[357212072,1743897044739,-150.0,0.00051403,7]
[357212073,1743897044749,-150.0,0.00051404,7]
[357212074,1743897044758,-150.0,0.00051419,7]
[357212075,1743897044769,-150.0,0.00051462,7]
[357212076,1743897044779,-150.0,0.00051469,7]
[357212077,1743897044788,-500.0,0.00051489,60]
[357212078,1743897044797,-500.0,0.00051489,60]
[357212079,1743897044808,-150.0,0.00051535,7]
[357212080,1743897044818,-150.0,0.0005155,7]
[357212081,1743897044828,-150.0,0.00051558,7]
[357212082,1743897044839,-150.0,0.00051571,7]
[357212083,1743897044850,-150.0,0.00051579,7]
[357212084,1743897044860,-150.0,0.00051606,7]
[357212085,1743897044870,-150.0,0.00051625,7]
[357212086,1743897044880,-150.0,0.00051632,7]
[357212087,1743897044889,-150.0,0.00051659,7]
[357212088,1743897044900,-150.0,0.00051659,7]
[357212089,1743897044915,-150.0,0.00051663,7]
[357212090,1743897044925,-150.0,0.00051666,7]
[357212091,1743897044934,-150.0,0.00051673,7]
[357212092,1743897044943,-150.0,0.00051677,7]
[357212093,1743897044954,-150.0,0.0005168,7]
[357212094,1743897045085,-150.0,0.00051681,30]
[357212095,1743897045095,-150.0,0.00051688,7]
[357212096,1743897045105,-150.0,0.00051696,7]
[357212097,1743897045114,-151.0,0.000517,120]
[357212098,1743897045123,-151.0,0.000517,120]
[357212099,1743897045133,-151.0,0.000517,120]
[357212100,1743897045143,-151.0,0.000517,120]
[357212101,1743897045152,-9207.75131642,0.000517,44]
[357212102,1743897045161,-150.0,0.00051736,7]
[357212103,1743897045171,-150.0,0.00051745,7]
[357212104,1743897045180,-150.0,0.00051762,7]
[357212105,1743897045189,-500.0,0.00051763,60]
[357212106,1743897045199,-500.0,0.00051763,60]
[357212107,1743897045208,-150.0,0.00051772,7]
[357212108,1743897045217,-150.0,0.00051785,7]
[357212109,1743897045227,-340.59338064,0.000518,28]
[357212110,1743897045236,-150.16367894,0.000518,45]
[357212111,1743897045246,-340.59338064,0.00051825,28]
[357212112,1743897045255,-150.0,0.00051835,7]